fUST/lending_fUST_20250109
["ID","MTS","AMOUNT","RATE_DAILY","PERIOD"]
[348194393,1736379039646,-500.0,0.00019178,2]
[348194394,1736379039655,-500.0,0.00019178,2]
[348194395,1736379039664,-500.0,0.00019178,2]
[348194396,1736379039674,-500.0,0.00019178,2]
[348194397,1736379039684,-500.0,0.00019178,2]
[348194398,1736379039693,-500.0,0.00019178,2]
[348194399,1736379039703,-500.0,0.00019178,2]
[348194400,1736379039713,-500.0,0.00019178,2]
[348194401,1736379039722,-500.0,0.00019178,2]
[348194402,1736379039731,-500.0,0.00019178,2]
[348194403,1736379039840,-500.0,0.00019178,2]
[348194404,1736379039850,-500.0,0.00019178,2]
[348194405,1736379039859,-500.0,0.00019178,2]
[348194406,1736379039869,-501.66193303,0.00019178,2]
[348194407,1736379039878,-500.0,0.00019178,2]
[348194408,1736379039888,-500.0,0.00019178,2]
[348194409,1736379039897,-500.0,0.00019178,2]
[348194410,1736379039907,-500.0,0.00019178,2]
[348194411,1736379039916,-556.08416536,0.00019178,2]
[348194412,1736379039925,-500.0,0.00019178,2]
[348194413,1736379039934,-500.98622586,0.00019178,2]
[348194414,1736379039944,-500.0,0.00019178,2]
[348194415,1736379039954,-502.6255212,0.00019178,2]
[348194416,1736379039963,-500.0,0.00019178,2]
[348194417,1736379039973,-500.0,0.00019178,2]
[348194418,1736379039982,-500.0,0.00019178,2]
[348194419,1736379039992,-510.49000631,0.00019178,2]
[348194420,1736379040002,-500.0,0.00019178,2]
[348194421,1736379040012,-500.0,0.00019178,2]
[348194422,1736379040021,-500.0,0.00019178,2]
[348194423,1736379040031,-500.0,0.00019178,2]
[348194424,1736379040040,-173.57957309,0.00019178,2]
[348194425,1736379040049,-500.0,0.00019178,2]
[348194426,1736379040058,-500.0,0.00019178,2]
[348194427,1736379040067,-500.0,0.00019178,2]
[348194428,1736379040077,-500.0,0.00019178,2]
[348194429,1736379040087,-500.0,0.00019178,2]
[348194430,1736379040096,-500.0,0.00019178,2]
[348194431,1736379040106,-503.62580368,0.00019178,2]
[348194432,1736379040115,-500.0,0.00019178,2]
[348194433,1736379040125,-500.0,0.00019178,2]
[348194434,1736379040135,-500.0,0.00019178,2]
[348194435,1736379040144,-500.0,0.00019178,2]
[348194436,1736379040153,-500.0,0.00019178,2]
[348194437,1736379040162,-500.0,0.00019178,2]
[348194438,1736379040172,-500.81962032,0.00019178,2]
[348194439,1736379040182,-500.0,0.00019178,2]
[348194440,1736379040191,-500.0,0.00019178,2]
[348194441,1736379040201,-500.0,0.00019178,2]
[348194442,1736379040211,-500.0,0.00019178,2]
[348194443,1736379040220,-500.0,0.00019178,2]
[348194444,1736379040230,-500.0,0.00019178,2]
[348194445,1736379040239,-500.0,0.00019178,2]
[348194446,1736379040248,-500.0,0.00019178,2]
[348194447,1736379040258,-500.0,0.00019178,2]
[348194448,1736379040267,-507.93396735,0.00019178,2]
[348194449,1736379040277,-500.0,0.00019178,2]
[348194450,1736379040287,-500.0,0.00019178,2]
[348194451,1736379040296,-500.0,0.00019178,2]
[348194452,1736379040306,-764.72,0.00019178,2]
[348194453,1736379040316,-500.0,0.00019178,2]
[348194454,1736379040326,-500.0,0.00019178,2]
[348194455,1736379040335,-500.0,0.00019178,2]
[348194456,1736379040345,-500.0,0.00019178,2]
[348194457,1736379040354,-500.0,0.00019178,2]
[348194458,1736379040364,-500.0,0.00019178,2]
[348194460,1736379040373,-500.0,0.00019178,2]
[348194462,1736379040383,-500.0,0.00019178,2]
[348194463,1736379040392,-500.0,0.00019178,2]
[348194465,1736379040402,-500.0,0.00019178,2]
[348194466,1736379040412,-511.78806505,0.00019178,2]
[348194467,1736379040421,-500.0,0.00019178,2]
[348194469,1736379040430,-500.0,0.00019178,2]
[348194471,1736379040440,-500.0,0.00019178,2]
[348194472,1736379040449,-500.0,0.00019178,2]
[348194473,1736379040459,-500.0,0.00019178,2]
[348194475,1736379040469,-500.0,0.00019178,2]
[348194477,1736379040478,-500.0,0.00019178,2]
[348194479,1736379040488,-502.42766317,0.00019178,2]
[348194480,1736379040498,-500.0,0.00019178,2]
[348194481,1736379040513,-500.0,0.00019178,2]
[348194482,1736379040522,-500.0,0.00019178,2]
[348194483,1736379040531,-500.0,0.00019178,2]
[348194484,1736379040542,-500.75194839,0.00019178,2]
[348194485,1736379040551,-500.0,0.00019178,2]
[348194486,1736379040560,-500.0,0.00019178,2]
[348194487,1736379040570,-500.0,0.00019178,2]
[348194488,1736379040580,-500.0,0.00019178,2]
[348194489,1736379040590,-500.0,0.00019178,2]
[348194490,1736379040599,-500.0,0.00019178,2]
[348194491,1736379040609,-500.0,0.00019178,2]
[348194492,1736379040619,-500.0,0.00019178,2]
[348194493,1736379040629,-470.97040225,0.00019178,2]
[348194494,1736379040638,-500.0,0.00019178,2]
[348194495,1736379040648,-500.0,0.00019178,2]
[348194497,1736379040657,-500.0,0.00019178,2]
[348194499,1736379040667,-500.0,0.00019178,2]
[348194500,1736379040676,-500.0,0.00019178,2]
[348194502,1736379040685,-500.0,0.00019178,2]
[348194503,1736379040695,-500.0,0.00019178,2]
[348194504,1736379040704,-500.0,0.00019178,2]
[348194505,1736379040714,-500.5797417,0.00019178,2]
[348194506,1736379040724,-500.0,0.00019178,2]
[348194507,1736379040733,-5125.65,0.00019178,2]
[348194508,1736379040742,-500.0,0.00019178,2]
[348194509,1736379040751,-500.0,0.00019178,2]
[348194510,1736379040760,-500.0,0.00019178,2]
[348194511,1736379040770,-500.0,0.00019178,2]
[348194512,1736379040780,-500.0,0.00019178,2]
[348194513,1736379040790,-500.0,0.00019178,2]
[348194514,1736379040799,-500.0,0.00019178,2]
[348194515,1736379040808,-500.0,0.00019178,2]
[348194517,1736379040818,-500.0,0.00019178,2]
[348194519,1736379040827,-500.0,0.00019178,2]
[348194520,1736379040837,-500.0,0.00019178,2]
[348194521,1736379040846,-529.61964726,0.00019178,2]
[348194522,1736379040856,-500.0,0.00019178,2]
[348194523,1736379040866,-500.0,0.00019178,2]
[348194524,1736379040875,-500.0,0.00019178,2]
[348194525,1736379040885,-500.0,0.00019178,2]
[348194526,1736379040895,-500.0,0.00019178,2]
[348194528,1736379040904,-542.74,0.00019178,2]
[348194529,1736379040913,-500.0,0.00019178,2]
[348194531,1736379040923,-500.0,0.00019178,2]
[348194532,1736379040932,-500.0,0.00019178,2]
[348194533,1736379040940,-500.0,0.00019178,2]
[348194534,1736379040950,-500.0,0.00019178,2]
[348194535,1736379040959,-500.0,0.00019178,2]
[348194536,1736379040969,-500.8055289,0.00019178,2]
[348194537,1736379040978,-151.0,0.00019178,2]
[348194538,1736379040988,-500.0,0.00019178,2]
[348194539,1736379040997,-500.0,0.00019178,2]
[348194540,1736379041007,-500.0,0.00019178,2]
[348194541,1736379041016,-500.0,0.00019178,2]
[348194542,1736379041026,-500.0,0.00019178,2]
[348194543,1736379041035,-500.0,0.00019178,2]
[348194544,1736379041045,-500.0,0.00019178,2]
[348194545,1736379041055,-500.95659128,0.00019178,2]
[348194546,1736379041064,-500.0,0.00019178,2]
[348194547,1736379041073,-387.6775002,0.00019178,2]
[348194548,1736379041088,-112.3224998,0.00019178,2]
[348194549,1736379041097,-500.0,0.00019178,2]
[348194550,1736379041106,-515.39575591,0.00019178,2]
[348194551,1736379041115,-500.0,0.00019178,2]
[348194552,1736379041125,-500.0,0.00019178,2]
[348194553,1736379041134,-500.0,0.00019178,2]
[348194554,1736379041144,-500.0,0.00019178,2]
[348194555,1736379041153,-500.0,0.00019178,2]
[348194556,1736379041162,-232.53,0.00019178,2]
[348194557,1736379041172,-500.0,0.00019178,2]
[348194558,1736379041181,-500.0,0.00019178,2]
[348194559,1736379041191,-500.0,0.00019178,2]
[348194560,1736379041200,-500.0,0.00019178,2]
[348194561,1736379041209,-1027.57354296,0.00019178,2]
[348194562,1736379041297,-36.69645704,0.00019178,2]
[348194563,1736379041306,-1064.27,0.00019178,2]
[348194564,1736379041315,-153.48,0.00019178,2]
[348194565,1736379041325,-151.0,0.00019391,2]
[348194566,1736379041336,-151.495035,0.00019391,2]
[348194567,1736379041345,-151.0,0.00019396,2]
[348194568,1736379041355,-151.0,0.00019396,2]
[348194569,1736379041364,-500.0,0.00019396,3]
[348194570,1736379041373,-500.0,0.00019396,3]
[348194571,1736379041383,-151.0,0.00019396,2]
[348194572,1736379041393,-500.0,0.00019398,3]
[348194573,1736379041402,-500.0,0.00019398,3]
[348194574,1736379041411,-500.0,0.00019398,3]
[348194575,1736379041421,-1383.67,0.00019398,3]
[348194576,1736379041430,-500.0,0.00019398,3]
[348194577,1736379041439,-500.0,0.00019435,2]
[348194578,1736379041449,-500.0,0.00019452,3]
[348194579,1736379041458,-500.0,0.00019452,3]
[348194580,1736379041467,-500.0,0.00019452,3]
[348194581,1736379041476,-500.0,0.00019452,3]
[348194582,1736379041486,-500.0,0.00019452,3]
[348194583,1736379041496,-500.0,0.00019452,3]
[348194584,1736379041508,-406.70925296,0.00019452,3]
[348194585,1736379041523,-93.29074704,0.00019452,3]
[348194586,1736379041532,-500.0,0.00019452,3]
[348194587,1736379041543,-413.80925296,0.00019452,3]
[348194588,1736379041555,-86.19074704,0.00019452,3]
[348194589,1736379041564,-500.0,0.00019452,3]
[348194590,1736379041574,-214.69844691,0.00019452,3]
[348194591,1736379041587,-285.30155309,0.00019452,3]
[348194592,1736379041597,-116.03335227,0.00019452,3]
[348194593,1736379041609,-383.96664773,0.00019452,3]
[348194594,1736379041618,-500.0,0.00019452,3]
[348194595,1736379041627,-500.0,0.00019452,3]
[348194596,1736379041636,-500.0,0.00019452,3]
[348194597,1736379041646,-500.0,0.00019452,3]
[348194598,1736379041655,-500.0,0.00019452,3]
[348194599,1736379041665,-442.96022061,0.00019452,3]
[348194600,1736379041677,-57.03977939,0.00019452,3]
[348194601,1736379041687,-500.0,0.00019452,3]
[348194602,1736379041696,-500.0,0.00019452,3]
[348194603,1736379041706,-122.96022061,0.00019452,3]
[348194604,1736379041719,-377.03977939,0.00019452,3]
[348194605,1736379041729,-500.0,0.00019452,3]
[348194606,1736379041738,-500.0,0.00019452,3]
[348194607,1736379041749,-500.0,0.00019452,3]
[348194608,1736379041759,-500.0,0.00019452,3]
[348194609,1736379041768,-528.89,0.00019452,3]
[348194610,1736379041778,-500.0,0.00019452,3]
[348194611,1736379041788,-500.0,0.00019452,3]
[348194612,1736379041798,-151.0,0.00019452,2]
[348194613,1736379041807,-500.0,0.00019452,3]
[348194614,1736379041817,-556.71422409,0.00019452,3]
[348194615,1736379041826,-500.0,0.00019452,3]
[348194616,1736379041835,-316.94944659,0.00019452,3]
[348194617,1736379041845,-500.0,0.00019452,3]
[348194618,1736379041854,-500.0,0.00019452,3]
[348194619,1736379041864,-151.0,0.00019452,2]
[348194620,1736379041873,-569.43,0.00019452,3]
[348194621,1736379041882,-500.0,0.00019452,3]
[348194622,1736379041893,-500.0,0.00019452,3]
[348194623,1736379041903,-500.0,0.00019452,3]
[348194624,1736379041914,-500.0,0.00019452,3]
[348194625,1736379041924,-500.0,0.00019452,3]
[348194626,1736379041934,-500.0,0.00019452,3]
[348194627,1736379041945,-500.0,0.00019452,3]
[348194628,1736379041956,-200.72957586,0.00019452,3]
[348194629,1736379041965,-500.0,0.00019452,3]
[348194630,1736379041974,-500.0,0.00019452,3]
[348194631,1736379041984,-500.0,0.00019452,3]
[348194632,1736379041994,-500.0,0.00019452,3]
[348194633,1736379042004,-500.0,0.00019452,3]
[348194634,1736379042013,-500.0,0.00019452,3]
[348194635,1736379042023,-500.0,0.00019452,3]
[348194636,1736379042032,-500.0,0.00019452,3]
[348194637,1736379042041,-500.0,0.00019452,3]
[348194638,1736379042050,-503.21,0.00019452,3]
[348194639,1736379042059,-151.0,0.00019452,2]
[348194640,1736379042069,-536.76,0.00019452,3]
[348194641,1736379042079,-500.0,0.00019452,3]
[348194642,1736379042088,-500.0,0.00019452,3]
[348194643,1736379042098,-500.0,0.00019452,3]
[348194644,1736379042109,-604.48,0.00019452,3]
[348194645,1736379042118,-655.49,0.00019452,3]
[348194646,1736379042128,-500.0,0.00019452,3]
[348194647,1736379042137,-500.0,0.00019452,3]
[348194648,1736379042146,-500.0,0.00019452,3]
[348194649,1736379042156,-500.0,0.00019452,3]
[348194650,1736379042165,-500.0,0.00019452,3]
[348194651,1736379042175,-500.0,0.00019452,3]
[348194652,1736379042184,-500.0,0.00019452,3]
[348194653,1736379042193,-500.0,0.00019452,3]
[348194654,1736379042203,-500.0,0.00019452,3]
[348194655,1736379042213,-501.62372157,0.00019452,3]
[348194656,1736379042222,-500.0,0.00019452,3]
[348194657,1736379042232,-500.0,0.00019452,3]
[348194658,1736379042243,-500.0,0.00019452,3]
[348194659,1736379042254,-500.0,0.00019452,3]
[348194660,1736379042263,-500.0,0.00019452,3]
[348194661,1736379042273,-502.23798082,0.00019452,3]
[348194662,1736379042362,-500.0,0.00019452,3]
[348194663,1736379042372,-500.0,0.00019452,3]
[348194664,1736379042382,-211.98415833,0.00019452,3]
[348194665,1736379042395,-288.01584167,0.00019452,3]
[348194666,1736379042403,-317.21521902,0.00019452,3]
[348194667,1736379042413,-501.6984192,0.00019452,3]
[348194668,1736379042422,-500.0,0.00019452,3]
[348194669,1736379042431,-500.0,0.00019452,3]
[348194670,1736379042440,-500.0,0.00019452,3]
[348194671,1736379042449,-500.0,0.00019452,3]
[348194672,1736379042458,-19.97397042,0.00019452,3]
[348194673,1736379042516,-1064.27,0.00019395,3]
[348194674,1736379042526,-1064.27,0.00019395,3]
[348194675,1736379042535,-210.48345567,0.00019395,3]
[348194695,1736379043671,-853.78654433,0.00019395,3]
[348194696,1736379043680,-704.09007567,0.00019395,3]
[348194697,1736379043707,-360.17992433,0.00019395,3]
[348194698,1736379043716,-195.56917348,0.00019395,3]
[348194699,1736379044041,-868.70082652,0.00019395,3]
[348194700,1736379044052,-501.29917348,0.00019395,3]
[348194701,1736379044091,-562.97082652,0.00019395,3]
[348194702,1736379044100,-456.02917348,0.00019452,3]
[348194703,1736379044111,-23.9968561,0.00019452,3]
[348194704,1736379044122,-681.98766326,0.00019452,3]
[348194705,1736379044134,-82.73233674,0.00019452,3]
[348194706,1736379044143,-502.24743074,0.00019452,3]
[348194707,1736379044152,-502.23058613,0.00019452,3]
[348194708,1736379044162,-500.0,0.00019452,3]
[348194709,1736379044171,-500.0,0.00019452,3]
[348194710,1736379044180,-500.0,0.00019452,3]
[348194711,1736379044189,-500.0,0.00019452,3]
[348194712,1736379044199,-500.0,0.00019452,3]
[348194713,1736379044208,-414.57615986,0.00019452,3]
[348194714,1736379044218,-500.0,0.00019452,3]
[348194715,1736379044227,-500.0,0.00019452,3]
[348194716,1736379044237,-500.0,0.00019452,3]
[348194717,1736379044246,-623.76012626,0.00019452,3]
[348194718,1736379044255,-500.0,0.00019452,3]
[348194719,1736379044264,-500.0,0.00019452,3]
[348194720,1736379044273,-500.0,0.00019452,3]
[348194721,1736379044285,-500.0,0.00019452,3]
[348194722,1736379044294,-500.0,0.00019452,3]
[348194723,1736379044305,-500.0,0.00019452,3]
[348194724,1736379044314,-500.0,0.00019452,3]
[348194725,1736379044324,-500.0,0.00019452,3]
[348194726,1736379044333,-500.0,0.00019452,3]
[348194727,1736379044342,-500.0,0.00019452,3]
[348194728,1736379044351,-500.0,0.00019452,3]
[348194729,1736379044361,-500.0,0.00019452,3]
[348194730,1736379044370,-5125.65,0.00019452,3]
[348194731,1736379044379,-500.0,0.00019452,3]
[348194732,1736379044389,-500.0,0.00019452,3]
[348194733,1736379044398,-500.0,0.00019452,3]
[348194734,1736379044408,-347.55,0.00019452,3]
[348194735,1736379044418,-500.0,0.00019452,3]
[348194736,1736379044427,-500.0,0.00019452,3]
[348194737,1736379044436,-245.66927522,0.00019452,3]
[348194738,1736379044446,-500.0,0.00019452,3]
[348194739,1736379044456,-500.0,0.00019452,3]
[348194740,1736379044465,-542.74,0.00019452,3]
[348194741,1736379044475,-500.0,0.00019452,3]
[348194742,1736379044484,-500.0,0.00019452,3]
[348194743,1736379044495,-500.0,0.00019452,3]
[348194744,1736379044509,-500.0,0.00019452,3]
[348194745,1736379044519,-500.0,0.00019452,3]
[348194746,1736379044529,-500.0,0.00019452,3]
[348194747,1736379044538,-500.0,0.00019452,3]
[348194748,1736379044550,-500.0,0.00019452,3]
[348194749,1736379044560,-500.0,0.00019452,3]
[348194750,1736379044569,-500.0,0.00019452,3]
[348194751,1736379044580,-500.0,0.00019452,3]
[348194752,1736379044590,-500.0,0.00019452,3]
[348194753,1736379044599,-500.0,0.00019452,3]
[348194754,1736379044608,-500.0,0.00019452,3]
[348194755,1736379044618,-500.0,0.00019452,3]
[348194756,1736379044627,-500.0,0.00019452,3]
[348194757,1736379044636,-500.0,0.00019452,3]
[348194758,1736379044646,-500.0,0.00019452,3]
[348194759,1736379044656,-500.0,0.00019452,3]
[348194760,1736379044666,-500.0,0.00019473,2]
[348194761,1736379044675,-500.0,0.00019473,2]
[348194762,1736379044685,-500.0,0.0001967,3]
[348194763,1736379044694,-151.0,0.0001967,2]
[348194764,1736379044703,-151.0,0.0001967,2]
[348194765,1736379044712,-500.0,0.0001967,3]
[348194766,1736379044722,-1383.67,0.00019672,3]
[348194767,1736379044731,-500.0,0.00019672,3]
[348194768,1736379044741,-500.0,0.00019726,3]
[348194769,1736379044750,-500.0,0.00019726,3]
[348194770,1736379044759,-500.0,0.00019726,3]
[348194771,1736379044768,-151.94962923,0.00019726,3]
[348194772,1736379044777,-500.0,0.00019726,3]
[348194773,1736379044788,-500.0,0.00019726,3]
[348194774,1736379044797,-176.722129,0.00019726,2]
[348194775,1736379044807,-500.0,0.00019726,3]
[348194776,1736379044816,-450.62,0.00019726,3]
[348194777,1736379044825,-345.85,0.00019726,3]
[348194778,1736379044834,-500.0,0.00019726,3]
[348194779,1736379044843,-348.2,0.00019726,3]
[348194780,1736379044853,-246.35,0.00019726,3]
[348194781,1736379044862,-655.49,0.00019726,3]
[348194782,1736379044872,-500.0,0.00019726,3]
[348194783,1736379044881,-500.0,0.00019726,3]
[348194784,1736379044890,-500.0,0.00019726,3]
[348194785,1736379044899,-500.0,0.00019726,3]
[348194786,1736379044908,-500.0,0.00019726,3]
[348194787,1736379044917,-500.0,0.00019726,3]
[348194788,1736379044927,-500.0,0.00019726,3]
[348194789,1736379044936,-500.0,0.00019726,3]
[348194790,1736379044946,-500.0,0.00019726,3]
[348194791,1736379044955,-500.0,0.00019726,3]
[348194792,1736379044965,-500.0,0.00019726,3]
[348194793,1736379044974,-577.46925232,0.00019726,3]
[348194794,1736379044984,-764.72,0.00019726,3]
[348194795,1736379044994,-500.0,0.00019726,3]
[348194796,1736379045003,-522.14,0.00019726,3]
[348194797,1736379045013,-500.0,0.00019726,3]
[348194798,1736379045024,-500.0,0.00019726,3]
[348194799,1736379045034,-500.0,0.00019726,3]
[348194800,1736379045043,-500.0,0.00019726,3]
[348194801,1736379045052,-501.51145642,0.00019726,3]
[348194802,1736379045062,-500.0,0.00019726,3]
[348194803,1736379045072,-5125.65,0.00019726,3]
[348194804,1736379045082,-500.0,0.00019726,3]
[348194805,1736379045093,-575.18,0.00019726,3]
[348194806,1736379045104,-493.49,0.00019726,3]
[348194807,1736379045114,-542.74,0.00019726,3]
[348194808,1736379045125,-500.0,0.00019726,3]
[348194809,1736379045135,-500.0,0.00019726,3]
[348194810,1736379045144,-500.0,0.00019726,3]
[348194811,1736379045153,-500.0,0.00019726,3]
[348194812,1736379045163,-500.0,0.00019726,3]
[348194813,1736379045172,-500.0,0.00019726,3]
[348194814,1736379045181,-500.0,0.00019726,3]
[348194815,1736379045190,-500.0,0.00019726,3]
[348194816,1736379045199,-644.073,0.0001976,2]
[348194817,1736379045208,-595.85308912,0.00019775,2]
[348194818,1736379045218,-276.4619942,0.00019863,7]
[348194819,1736379045227,-725.28030728,0.000199,2]
[348194820,1736379045237,-306.0,0.00019945,2]
[348194821,1736379045247,-1383.67,0.00019946,3]
[348194822,1736379045257,-300.59,0.00019946,3]
[348194823,1736379045266,-196.2,0.0002,3]
[348194824,1736379045275,-500.0,0.0002,3]
[348194825,1736379045287,-208.921665,0.0002,2]
[348194826,1736379045298,-500.0,0.0002,3]
[348194827,1736379045308,-151.0,0.0002,2]
[348194828,1736379045317,-655.49,0.0002,3]
[348194829,1736379045327,-500.0,0.0002,3]
[348194830,1736379045338,-500.0,0.0002,3]
[348194831,1736379045348,-233.34,0.0002,3]
[348194832,1736379045358,-500.0,0.0002,3]
[348194833,1736379045367,-447.49603036,0.0002,3]
[348194834,1736379045376,-500.0,0.0002,3]
[348194835,1736379045385,-764.72,0.0002,3]
[348194836,1736379045395,-500.0,0.0002,3]
[348194837,1736379045404,-500.0,0.0002,3]
[348194838,1736379045414,-5125.65,0.0002,3]
[348194839,1736379045423,-358.25,0.0002,3]
[348194840,1736379045432,-542.74,0.0002,3]
[348194841,1736379045441,-500.0,0.0002,3]
[348194842,1736379045450,-500.0,0.0002,3]
[348194843,1736379045459,-617.53,0.0002,3]
[348194844,1736379045468,-539.08,0.0002,3]
[348194845,1736379045478,-500.0,0.0002,3]
[348194846,1736379045487,-500.0,0.0002,3]
[348194847,1736379045496,-604.83,0.0002,3]
[348194848,1736379045508,-270.5,0.0002,3]
[348194849,1736379045517,-235.0661284,0.00020021,2]
[348194850,1736379045527,-500.0,0.00020021,2]
[348194851,1736379045536,-725.28030715,0.00020038,2]
[348194852,1736379045547,-725.28030715,0.00020176,2]
[348194853,1736379045556,-1383.67,0.0002022,3]
[348194854,1736379045566,-201.88504176,0.00020273,3]
[348194855,1736379045575,-500.0,0.00020273,3]
[348194856,1736379045585,-655.49,0.00020273,3]
[348194857,1736379045594,-500.0,0.00020273,3]
[348194858,1736379045604,-530.54,0.00020273,3]
[348194859,1736379045614,-764.72,0.00020273,3]
[348194860,1736379045624,-208.94,0.00020273,3]
[348194861,1736379045633,-500.0,0.00020273,3]
[348194862,1736379045642,-5125.65,0.00020273,3]
[348194863,1736379045651,-542.74,0.00020273,3]
[348194864,1736379045661,-500.0,0.00020273,3]
[348194865,1736379045670,-500.0,0.00020273,3]
[348194866,1736379045679,-500.0,0.00020273,3]
[348194867,1736379045688,-482.51,0.00020273,3]
[348194868,1736379045698,-725.28030715,0.00020314,2]
[348194869,1736379045707,-725.28030715,0.00020452,2]
[348194870,1736379045717,-1383.67,0.00020494,3]
[348194871,1736379045726,-500.0,0.00020547,3]
[348194872,1736379045735,-655.49,0.00020547,3]
[348194873,1736379045744,-500.0,0.00020547,3]
[348194874,1736379045754,-764.72,0.00020547,3]
[348194875,1736379045763,-500.0,0.00020547,3]
[348194876,1736379045772,-5125.65,0.00020547,3]
[348194877,1736379045781,-542.74,0.00020547,3]
[348194878,1736379045791,-500.0,0.00020547,3]
[348194879,1736379045800,-500.0,0.00020547,3]
[348194880,1736379045809,-500.0,0.00020547,3]
[348194881,1736379045819,-725.28030715,0.0002059,2]
[348194882,1736379045828,-503.386324,0.00020596,2]
[348194883,1736379045838,-725.28030715,0.00020728,2]
[348194884,1736379045846,-1383.67,0.00020768,3]
[348194885,1736379045856,-1500.0,0.000208,2]
[348194886,1736379045866,-151.0,0.00020821,2]
[348194887,1736379045875,-500.0,0.00020821,3]
[348194888,1736379045886,-655.49,0.00020821,3]
[348194889,1736379045895,-500.0,0.00020821,3]
[348194890,1736379045906,-764.72,0.00020821,3]
[348194891,1736379045916,-467.89,0.00020821,3]
[348194892,1736379045927,-5125.65,0.00020821,3]
[348194893,1736379045937,-542.74,0.00020821,3]
[348194894,1736379046025,-500.0,0.00020821,3]
[348194895,1736379046036,-500.0,0.00020821,3]
[348194896,1736379046045,-441.91,0.00020821,3]
[348194897,1736379046057,-725.28030715,0.00020866,2]
[348194898,1736379046067,-1115.04946,0.00021,2]
[348194899,1736379046076,-258.584052,0.00021,2]
[348194900,1736379046085,-2954.47256187,0.00021,2]
[348194901,1736379046099,-122.67134519,0.00021,2]
[348194902,1736379046108,-725.28030715,0.00021003,2]
[348194903,1736379046118,-422.53202834,0.00021042,3]
[348194916,1736379046710,-1064.27,0.00019395,3]
[348194917,1736379046719,-1064.27,0.00019395,3]
[348194918,1736379046729,-1064.27,0.00019395,3]
[348194919,1736379046739,-961.13797166,0.00021042,3]
[348194920,1736379046748,-500.0,0.00021095,3]
[348194921,1736379046758,-655.49,0.00021095,3]
[348194922,1736379046767,-500.0,0.00021095,3]
[348194923,1736379046776,-764.72,0.00021095,3]
[348194924,1736379046786,-5125.65,0.00021095,3]
[348194925,1736379046795,-542.74,0.00021095,3]
[348194926,1736379046805,-222.08,0.00021095,3]
[348194927,1736379046815,-500.0,0.00021095,3]
[348194928,1736379046824,-725.28030715,0.00021141,2]
[348194929,1736379046832,-725.28030715,0.00021279,2]
[348194930,1736379046842,-151.0,0.00021316,2]
[348194931,1736379046851,-1383.67,0.00021316,3]
[348194932,1736379046861,-279.25724227,0.00021367,2]
[348194933,1736379046870,-600.29360575,0.00021367,2]
[348194934,1736379046879,-500.0,0.00021367,2]
[348194935,1736379046889,-500.0,0.00021369,3]
[348194936,1736379046898,-655.49,0.00021369,3]
[348194937,1736379046907,-500.0,0.00021369,3]
[348194938,1736379046917,-764.72,0.00021369,3]